Cogmind - Beta 15 --- EXPLORER MODE // 2025.10.18 @ 06:54:36 Player: time Result: Destroyed by H-88 Terminator with KE Penetrator Performance ------------- Evolutions (8) 4000 Regions Visited (17) 3400 Robots Destroyed (241) 1205 Value Destroyed (11628) 11628 Prototype IDs (28) 560 Alien Tech Used (0) 0 Bonus (1359) 1359 TOTAL SCORE: 22152 Bonus ------- High Alert Combat Kills 745 Follower Combat Kills 114 Scanned by Researcher 500 Cogmind --------- Core Integrity 0/1450 Matter 117/300 Energy 100/100 System Corruption 12% Temperature Cool (0) Movement Core (50) Location -2/Testing Parts ------- > --- POWER (3) -------- (None) > --- PROPULSION (6) --- (None) > --- UTILITY (9) ------ (None) > --- WEAPON (6) ------- (None) > --- INVENTORY (5) ---- Improved Quantum Reactor Advanced VSS Leg Biometal Leg Biometal Leg Vibroblade Peak State ------------ > --- POWER ------------ Compact Particle Reactor Improved Quantum Reactor Improved Quantum Reactor > --- PROPULSION ------- Myomer Leg Advanced VSS Leg Advanced Myomer Leg Improved Thunder Leg Centrium Leg Centrium Leg > --- UTILITY ---------- Advanced Heat Sink Experimental Terrain Scan Processor Advanced Target Analyzer Advanced Recoil Stabilizer Stasis Canceller Experimental Reaction Control System Advanced Recalibrator > --- WEAPON ----------- Cooled Plasma Rifle Heavy Dispersion Rifle Nova Cannon Omega Cannon Fusion Bomb Launcher > --- INVENTORY -------- Quantum Reactor Improved Quantum Reactor Biometal Leg Vibroblade [Rating: 187] Favorites ----------- Power Cooled Ion Engine Engine Cooled Ion Engine Power Core Micro Fission Core Reactor Quantum Reactor Propulsion Flexi-carbon Leg Treads Spiked Medium Treads Leg Flexi-carbon Leg Hover Unit Improved Gyrokinetic Inverter Utility Medium Storage Unit Device Advanced Heat Sink Storage Medium Storage Unit Processor Makeshift Targeting Computer Hackware Hacking Suite Protection Experimental Weapon Shielding Weapon Makeshift Shrapnel Gun Energy Gun Precision Beam Rifle Energy Cannon Long-range Proton Cannon Ballistic Gun Makeshift Shrapnel Gun Ballistic Cannon Enhanced Gauss Cannon Launcher Rocket Launcher Special Weapon Stasis Projector Slashing Weapon Chainsword Piercing Weapon Lance Special Melee Weapon Advanced Datajack Build | -11 -10 -10 -9 -8 -7 -6 -6 -6 -6 -5 -5 -5 -5 -4 -3 -2 -2 ------- Run | Yrd Mat Min Mat Mat Fac Fac Low Low Dat Pro Fac Upp Upp Fac Res Res Tes Slots Evolved 17 | . 1 . 2 2 2 2 . . . . 2 . . 2 2 2 . Power 2 | . . . . . . 1 . . . . . . . 1 . . . Propulsion 4 | . . . 1 . 1 . . . . . 2 . . . . . . Utility 7 | . 1 . . 1 1 1 . . . . . . . 1 1 1 . Weapon 4 | . . . 1 1 . . . . . . . . . . 1 1 . Parts Attached 198 | 7 2 1 5 8 4 5 15 5 . 5 16 3 7 39 23 25 28 Power 30 | 1 . . . 1 1 . . 1 . 1 2 . 1 9 4 3 6 Engine 5 | 1 . . . 1 1 . . 1 . . . . . 1 . . . Core 9 | . . . . . . . . . . 1 2 . 1 4 1 . . Reactor 16 | . . . . . . . . . . . . . . 4 3 3 6 Propulsion 50 | 2 . . 1 2 3 1 5 1 . 2 . 2 . 11 7 5 8 Treads 3 | . . . . . . . 1 . . . . . . 2 . . . Leg 46 | 2 . . 1 2 3 1 4 1 . 2 . 2 . 8 7 5 8 Wheel . | . . . . . . . . . . . . . . . . . . Hover 1 | . . . . . . . . . . . . . . 1 . . . Flight . | . . . . . . . . . . . . . . . . . . Utility 60 | 2 2 . 1 1 . . 6 2 . 1 9 1 4 11 5 9 6 Device 38 | 1 1 . . . . . 2 1 . 1 6 1 1 10 2 8 4 Storage 4 | 1 . . . . . . 1 . . . . . . . 1 1 . Processor 11 | . . . . . . . 3 1 . . 1 . 3 1 . . 2 Hackware 1 | . . . . . . . . . . . . . . . 1 . . Protection 6 | . 1 . 1 1 . . . . . . 2 . . . 1 . . Artifact . | . . . . . . . . . . . . . . . . . . Weapon 58 | 2 . 1 3 4 . 4 4 1 . 1 5 . 2 8 7 8 8 Energy Gun 17 | 2 . . . 2 . 2 2 . . . 1 . . 2 2 2 2 Energy Cannon 9 | . . . 1 . . . . . . . 2 . . 1 1 2 2 Ballistic Gun 7 | . . . 1 . . 1 1 1 . . 1 . . 2 . . . Ballistic Cannon 9 | . . . 1 . . . . . . 1 1 . 1 1 1 2 1 Launcher 9 | . . 1 . 2 . 1 . . . . . . . 1 2 1 1 Special Weapon 1 | . . . . . . . . . . . . . . . . . 1 Impact Weapon . | . . . . . . . . . . . . . . . . . . Slashing Weapon 3 | . . . . . . . 1 . . . . . . 1 . . 1 Piercing Weapon 2 | . . . . . . . . . . . . . 1 . . 1 . Special Melee Weapon 1 | . . . . . . . . . . . . . . . 1 . . Unidentified Prototypes 26 | . . . 1 2 1 1 1 . . . 3 . . 1 2 3 11 Parts Lost 74 | . . 1 . . . . 6 . . 1 1 2 1 25 1 34 2 Power 9 | . . . . . . . . . . . . . . 5 . 3 1 Propulsion 22 | . . . . . . . 1 . . . . 2 . 8 1 10 . Utility 21 | . . . . . . . 3 . . 1 1 . 1 6 . 8 1 Weapon 22 | . . 1 . . . . 2 . . . . . . 6 . 13 . Highest Loss Streak 16 | . . 1 . . . . 6 . . 1 1 1 1 9 1 16 1 To Critical Strikes 1 | . . . . . . . . . . . . . . . . 1 . Average Backups 8 | 1 4 7 5 7 7 8 7 9 9 9 9 9 9 6 7 16 4 Power 1 | . 1 1 1 . 1 1 1 2 2 1 . . 1 . 1 4 1 Propulsion 1 | . . 1 . 1 1 2 . 2 2 2 1 1 . . 2 2 . Utility . | . . 1 1 1 . . . . . . . . . . . 2 . Weapon 4 | . 2 4 3 3 3 4 4 4 4 4 6 7 7 4 3 5 . Tool/Special . | . . . . . . . . . . . . . . . . . . Unused Backups 22 | . 1 . . 3 3 2 2 . . 2 1 1 . 4 . 3 . Power 6 | . . . . 1 . . 1 . . 2 . . . . . 2 . Propulsion 4 | . 1 . . . 1 . . . . . . 1 . 1 . . . Utility 2 | . . . . . . . . . . . . . . 1 . 1 . Weapon 10 | . . . . 2 2 2 1 . . . 1 . . 2 . . . Tool/Special . | . . . . . . . . . . . . . . . . . . Average Slot Usage (%) 89 | . 94 100 94 95 96 92 85 100 100 99 99 97 97 70 97 90 65 Engine 4 | . 12 12 10 8 7 12 12 12 12 11 4 . . . . . . Core 2 | . . . . . . . . . . . 5 11 11 6 1 . . Reactor 3 | . . . . . . . . . . . . . . 2 11 10 8 Leg 24 | . 25 25 28 25 28 25 22 25 25 25 32 30 33 16 26 23 22 Device 13 | . 14 12 10 13 14 12 8 9 12 15 13 16 11 11 14 14 12 Storage 5 | . 12 12 10 8 7 6 9 8 6 6 5 5 5 2 3 5 . Processor 8 | . . . . . . . 4 18 18 13 7 5 12 15 12 7 3 Protection 3 | . 4 12 7 6 10 11 3 . . . 5 4 1 . 2 . . Energy Gun 7 | . 25 23 7 8 7 9 11 11 12 8 6 2 3 3 8 6 6 Energy Cannon 2 | . . . . . . . . . . . 3 5 5 1 4 4 3 Ballistic Gun 3 | . . . 2 8 7 2 1 11 12 12 5 5 5 2 1 . . Ballistic Cannon 4 | . . . 8 8 7 6 1 . . 3 5 7 6 4 4 3 2 Launcher 2 | . . 1 10 8 7 5 2 . . . . . . . . 5 3 Peak Build Rating 187 | 7 9 10 13 26 33 47 58 63 63 69 92 95 96 120 147 178 187 Average Rating 84 | 6 7 9 10 20 29 39 47 60 63 64 81 91 91 79 136 158 139 On Entrance 51 | . 7 9 10 10 26 33 41 58 63 63 67 91 95 96 102 146 3 Naked Turns 54 | . . . . . . . . . . . . . . . . 42 12 Heaviest Build 177 | 21 24 26 29 36 39 57 56 50 50 59 65 63 76 90 134 177 113 Greatest Support 171 | 20 20 20 30 42 67 70 70 70 70 70 105 110 110 125 155 171 171 Greatest Overweight (x) 5 | 5 1 1 1 . . . 2 . . 1 . . . 2 2 2 . Average Overweight (x) . | . 1 1 . . . . . . . . . . . . . . . Largest Inventory Capacity 20 | 10 10 10 10 10 10 10 10 10 10 10 10 10 10 10 20 20 5 Average Capacity 11 | 9 10 10 10 10 10 10 10 10 10 10 10 10 10 7 13 19 5 Most Carried 20 | 3 8 10 9 10 10 10 10 10 10 10 10 10 10 10 11 20 5 Average Carried 9 | 1 4 9 7 9 9 9 8 10 10 9 9 9 9 6 7 16 4 Final Capacity 20 | 10 10 10 10 10 10 10 10 10 10 10 10 10 10 5 20 5 5 Final Carried 10 | 3 8 9 8 10 10 10 10 10 10 10 9 8 10 4 10 5 5 Class Distribution -------------------- 33% | Scavenger-Gunner 15% | Hacker-Tank 15% | Hacker-Mutant 13% | Hacker-Executioner 11% | Derelict-Gunner 3% | Hacker-Gunner 3% | Scavenger-Tank Dominant Class ---------------- Hacker-Mutant | -10/Materials Hacker-Mutant | -10/Mines Hacker-Tank | -9/Materials Hacker-Tank | -8/Materials Hacker-Tank | -7/Factory Hacker-Tank | -6/Factory Scavenger-Gunner | -6/Lower Caves Derelict-Gunner | -6/Lower Caves Derelict-Gunner | -6/Data Miner Derelict-Gunner | -5/Proximity Caves Scavenger-Gunner | -5/Factory Scavenger-Gunner | -5/Upper Caves Scavenger-Gunner | -5/Upper Caves Scavenger-Gunner | -4/Factory Scavenger-Tank | -3/Research Hacker-Executioner | -2/Research Scavenger-Executioner | -2/Testing Resources | -11 -10 -10 -9 -8 -7 -6 -6 -6 -6 -5 -5 -5 -5 -4 -3 -2 -2 ----------- Run | Yrd Mat Min Mat Mat Fac Fac Low Low Dat Pro Fac Upp Upp Fac Res Res Tes Matter Collected 7106 | 250 40 6 189 202 83 . 458 223 . 324 628 298 98 1422 655 1484 746 Remotely . | . . . . . . . . . . . . . . . . . . Salvage Created 10131 | . 91 37 399 350 137 78 536 145 . 241 658 434 108 1722 867 3196 1132 Parts 445 | . 9 4 31 23 3 6 18 10 . 13 30 10 7 66 29 140 46 Haulers Intercepted 7 | . . . 2 3 1 . . . . . . . . 1 . . . Recyclers Shooed 6 | . . . 1 1 . . . . . . . . . 2 . 2 . Parts Field Recycled . | . . . . . . . . . . . . . . . . . . Retrieved Matter . | . . . . . . . . . . . . . . . . . . Parts Self-Destructed . | . . . . . . . . . . . . . . . . . . Prevented . | . . . . . . . . . . . . . . . . . . Kills | -11 -10 -10 -9 -8 -7 -6 -6 -6 -6 -5 -5 -5 -5 -4 -3 -2 -2 ------- Run | Yrd Mat Min Mat Mat Fac Fac Low Low Dat Pro Fac Upp Upp Fac Res Res Tes Combat Hostiles Destroyed 175 | . 4 3 4 6 2 3 11 4 . 10 16 10 2 22 12 54 12 Melee 11 | . . . . . . . 3 . . . . . . 6 . 2 . Guns 55 | . 4 3 2 3 . 2 4 3 . 7 5 4 1 3 4 5 5 Cannons 60 | . . . 1 2 2 1 2 . . 3 10 5 1 8 5 16 4 AOE 44 | . . . 1 1 . . 2 1 . . 1 1 . 3 3 28 3 Classes Destroyed 21 | . 2 1 5 1 1 . . 2 . 2 . . 1 2 . 3 1 Worker 18 | . . . . . 1 . . . . . . . . 1 . 14 2 Builder 13 | . . . 1 . . . . . . . 1 . . . . 8 3 Hauler 7 | . . . 2 3 1 . . . . . . . . 1 . . . Recycler 11 | . . . 2 . . . . . . . . . . 2 1 3 3 Mechanic 1 | . . . . . . . . . . . . . . 1 . . . Operator 3 | . . . 1 . . . . . . . 1 . . . . . 1 Drone 5 | . . . . . . . . . . 2 3 . . . . . . Watcher 12 | . 1 . . 1 1 . . . . . . . . 4 1 2 2 Swarmer 36 | . 4 2 . 3 . 3 2 . . 3 4 3 . . . 9 3 Saboteur 2 | . . . . . . . . . . . . . . . . 2 . Grunt 52 | . . . . 2 2 . 8 . . 1 4 5 . 6 4 18 2 Brawler 3 | . . . . . . . . . . . . . . 1 . 2 . Duelist 5 | . . . . . . . . . . 1 . 1 . . . 3 . Protector 1 | . . . . . . . . . . . . . . . . 1 . Researcher 1 | . . . . . . . . . . . . . . . . . 1 Sentry 18 | . . . 4 1 . . 1 1 . . 4 1 . 2 2 2 . Demolisher 1 | . . 1 . . . . . . . . . . . . . . . Hunter 23 | . . . . . . . . 2 . 1 . . 1 5 4 5 5 Programmer 30 | . . . . . . . . 1 . 2 4 . . 8 2 11 2 Striker 1 | . . . . . . . . . . . . . . . . 1 . Mutant 1 | . . . . . . . . . . . . . 1 . . . . Best Kill Streak 27 | . 2 2 3 4 4 3 7 3 . 3 5 5 1 4 4 27 8 Combat Bots Only 10 | . 2 2 1 3 2 3 7 3 . 3 5 5 1 3 4 10 3 Max Kills in Single Turn 5 | . 1 1 2 1 2 1 1 2 . 2 4 1 1 2 3 5 4 Gunslinging 1 | . . . . . . . . . . 1 . . . . . . . Exploded 3 | . . . 1 1 . . 1 1 . . 1 1 . 1 2 3 1 Melee 1 | . . . . . . . 1 . . . . . . 1 . 1 . Uniques/NPCs Destroyed . | . . . . . . . . . . . . . . . . . . Combat | -11 -10 -10 -9 -8 -7 -6 -6 -6 -6 -5 -5 -5 -5 -4 -3 -2 -2 -------- Run | Yrd Mat Min Mat Mat Fac Fac Low Low Dat Pro Fac Upp Upp Fac Res Res Tes Hostile Shots Fired 1530 | . 12 13 15 15 6 24 96 31 . 28 62 46 11 451 64 540 116 Missed 554 | . 4 4 5 2 3 17 12 13 . 11 18 20 5 173 31 179 57 Hits 976 | . 8 9 10 13 3 7 84 18 . 17 44 26 6 278 33 361 59 Melee 8 | . . . . . . . . . . 2 . . . 1 . 5 . Projectile 968 | . 8 9 10 13 3 7 84 18 . 15 44 26 6 277 33 356 59 AOE 10 | . . 8 . . . . . . . . . . . 2 . . . Critical Strikes 60 | . . . . 1 . . 2 2 . . 4 2 . 15 . 33 1 Actively Blocked 25 | . . . . . . . . . . . . . . . . 25 . Part Disruptions 7 | . . . . . . . . . . 1 . . 1 . 1 4 . Damage Taken 12955 | . 34 277 110 90 27 97 1073 175 . 107 544 295 26 3339 932 5036 793 Core 3170 | . 11 67 9 15 . . 191 . . 24 63 37 . 765 531 1217 240 Absorbed by Shields 2539 | . . . . . . . . 8 . 116 121 . . 643 . 1651 . Redirected to Shielding 257 | . . . . . . . . . . . 143 66 4 . 32 12 . Ignored by Resistances 8310 | . 27 160 66 78 24 64 645 114 . 131 388 181 21 2249 242 3460 460 Regen/Repaired (Parts) 91 | . . . . 13 . 67 . . . . . . . . 11 . . Core Remaining (%) 79 | 100 . 68 97 97 100 . . . . 74 . . 90 33 59 . . Volleys Fired 322 | . 6 5 12 18 6 5 16 6 . 15 29 20 3 67 21 73 20 Largest 6 | . 2 2 3 3 4 3 4 4 . 4 4 4 4 4 5 6 5 Hottest 498 | . 80 80 103 111 144 165 185 190 . 190 270 236 236 283 424 498 383 Shots Fired 1036 | . 12 10 28 54 21 14 52 21 . 57 116 78 12 162 91 237 71 Gun 514 | . 12 8 12 36 12 9 37 19 . 48 65 32 6 77 47 67 27 Cannon 426 | . . . 11 18 6 5 8 . . 9 51 46 6 76 42 123 25 Launcher 88 | . . 2 5 . 3 . 7 2 . . . . . 9 2 47 11 Special 8 | . . . . . . . . . . . . . . . . . 8 Kinetic 417 | . . . 13 36 12 7 11 10 . 37 64 46 6 79 32 54 10 Thermal 386 | . . . . 3 6 4 25 9 . 20 36 12 3 65 47 114 42 Explosive 69 | . . 2 5 . 3 . 7 2 . . . . . 9 2 28 11 Electromagnetic 156 | . 12 8 10 15 . 3 9 . . . 16 20 3 9 10 41 . Robot Hit Streak 51 | . 4 8 10 17 16 17 18 41 . 51 37 32 21 37 26 23 16 Robot Miss Streak 4 | . 2 1 1 2 1 2 1 . . 2 1 1 1 4 4 3 2 Penetration Max 1 | . . . . . . . . . . . 1 . . 1 . . . Secondary Targets 4 | . 1 . . . . . 1 . . 2 . . . . . . . Max Gunslinging Chain 1 | . 1 . . . . . 1 . . 1 . . . . . . . Shots Hit Robots 759 | . 7 8 19 36 16 8 46 13 . 37 78 58 9 140 64 173 47 Core Hits 516 | . 5 5 14 18 13 5 30 10 . 25 41 17 6 61 34 191 41 Critical Kills 15 | . . . . 1 . . . . . . . . . 9 . 1 4 Critical Parts Destroyed 8 | . . . . . . . . . . . . . . 7 . . 1 Critical Strikes 62 | . . . 3 3 1 . 1 . . 1 5 1 . 26 5 9 7 Burn 12 | . . . . . . . . . . 1 4 . . . 3 3 1 Meltdown 3 | . . . . . . . . . . . . . . 2 . 1 . Destroy 23 | . . . 1 1 . . . . . . . . . 16 . . 5 Blast 15 | . . . 2 2 1 . 1 . . . 1 1 . 1 1 4 1 Corrupt 1 | . . . . . . . . . . . . . . . 1 . . Sever 6 | . . . . . . . . . . . . . . 6 . . . Impale 2 | . . . . . . . . . . . . . . 1 . 1 . Melee Attacks 51 | . . . . . . . 6 . . . . . 1 28 2 7 7 Impact . | . . . . . . . . . . . . . . . . . . Slashing 37 | . . . . . . . 6 . . . . . . 23 1 . 7 Piercing 13 | . . . . . . . . . . . . . 1 5 . 7 . Sneak Attacks 2 | . . . . . . . . . . . . . . 1 . . 1 Combat Hostiles . | . . . . . . . . . . . . . . . . . . Follow-up Attacks . | . . . . . . . . . . . . . . . . . . Damage Inflicted 35743 | . 86 125 628 733 469 136 1509 625 . 1026 2723 1588 239 5761 2601 13649 3845 Guns 8122 | . 86 78 86 354 88 77 713 319 . 728 1049 555 110 1302 803 1274 500 Cannons 11323 | . . . 146 257 89 59 100 . . 298 1251 961 129 1960 1212 3768 1093 Explosions 14414 | . . 47 382 116 292 . 513 306 . . 380 72 . 1522 546 8348 1890 Melee 1711 | . . . . . . . 183 . . . . . . 902 40 259 327 Ramming 173 | . . . 14 6 . . . . . . 43 . . 75 . . 35 Kinetic 9306 | . . . 165 363 127 75 171 156 . 816 1516 970 142 1532 746 1820 707 Thermal 9814 | . . 35 129 152 50 42 624 163 . 210 968 288 62 1747 1095 3363 886 Explosive 11400 | . . 12 253 . 292 . 338 306 . . . . . 1352 546 6411 1890 Electromagnetic 3339 | . 86 78 67 212 . 19 193 . . . 196 330 35 153 174 1796 . Impact . | . . . . . . . . . . . . . . . . . . Slashing 1355 | . . . . . . . 183 . . . . . . 805 40 . 327 Piercing 356 | . . . . . . . . . . . . . . 97 . 259 . Highest Corruption 12 | . . . . . . 2 2 3 3 4 . . . 12 . 12 12 Average Corruption 5 | . . . . . . 2 2 2 3 3 . . . 8 . 4 12 Corruption Purged . | . . . . . . . . . . . . . . . . . . Corruption Blocked . | . . . . . . . . . . . . . . . . . . Effects 148 | . . . . . . 1 15 4 . 33 . . . 41 . 28 26 Message Errors 36 | . . . . . . . 1 . . 8 . . . 10 . 8 9 Matter Fused 33 | . . . . . . . 2 1 . 10 . . . 9 . 7 4 Heat Flow Errors 16 | . . . . . . 1 2 . . 4 . . . 3 . 5 1 Energy Discharges 13 | . . . . . . . 2 2 . 3 . . . 3 . 1 2 Parts Rejected 3 | . . . . . . . . . . . . . . 3 . . . Parts Fused 2 | . . . . . . . . . . . . . . 1 . 1 . Data Loss (minor) 13 | . . . . . . . 2 1 . 3 . . . 3 . 1 3 Data Loss (major) 11 | . . . . . . . 3 . . 2 . . . 2 . 1 3 Misfires 6 | . . . . . . . . . . 3 . . . 2 . 1 . Alerts 6 | . . . . . . . 3 . . . . . . 2 . 1 . Misdirections 2 | . . . . . . . . . . . . . . 1 . . 1 Weapon Failures 7 | . . . . . . . . . . . . . . 2 . 2 3 Overload Shots . | . . . . . . . . . . . . . . . . . . Overflow Damage 1374 | . . . . 6 1 . 15 20 . 18 129 87 . 185 27 523 363 Projectiles 576 | . . . . 6 . . . . . 18 30 55 . 46 27 176 218 Explosions 696 | . . . . . 1 . 10 20 . . 99 32 . 100 . 347 87 Melee 102 | . . . . . . . 5 . . . . . . 39 . . 58 Knockbacks 44 | . . . 2 3 1 . 2 . . 3 1 3 . 5 9 14 1 Impact 2 | . . . 2 . . . . . . . . . . . . . . Kinetic 41 | . . . . 3 1 . 2 . . 3 1 3 . 5 8 14 1 Secondary 1 | . . . . . . . . . . . . . . . 1 . . Self-Inflicted Damage 776 | . . 29 18 . . . 10 5 . . 126 . . 75 . 453 60 Shots 48 | . . 2 1 . . . 1 1 . . 2 . . 2 . 35 4 Rammed . | . . . . . . . . . . . . . . . . . . Targets Rammed 20 | . 1 . 4 2 . . . . . . 3 . . 8 . . 2 Kicked 20 | . 1 . 4 2 . . . . . . 3 . . 8 . . 2 Crushed . | . . . . . . . . . . . . . . . . . . Highest Temperature 1667 | . 36 81 78 72 200 146 756 110 . 168 432 267 83 608 1667 1025 472 Average Temperature 233 | . 18 37 29 35 78 48 324 42 . 43 126 107 44 186 965 303 133 Received Heat Transfer 1990 | . . . 36 81 27 6 331 2 . 4 103 162 . 628 78 505 27 Effects 128 | . . . . . . . 31 . . . 1 . . 16 21 58 1 Shutdowns 23 | . . . . . . . 7 . . . . . . 3 . 12 1 Energy Bleed 13 | . . . . . . . 6 . . . . . . 1 3 3 . Interference 16 | . . . . . . . 4 . . . 1 . . . 2 9 . Matter Decay 11 | . . . . . . . 1 . . . . . . 1 2 7 . Short Circuit 12 | . . . . . . . 3 . . . . . . 1 3 5 . Damage (minor) 15 | . . . . . . . 6 . . . . . . 1 . 8 . Damage (major) 29 | . . . . . . . 3 . . . . . . 8 8 10 . Damage (core) 9 | . . . . . . . 1 . . . . . . 1 3 4 . Siege Activations . | . . . . . . . . . . . . . . . . . . Martial Activations . | . . . . . . . . . . . . . . . . . . Shielding Activations . | . . . . . . . . . . . . . . . . . . Robots Disrupted . | . . . . . . . . . . . . . . . . . . Combat Hostiles . | . . . . . . . . . . . . . . . . . . Robots Corrupted 3 | . . . . . . . . . . . . . . 1 . 1 1 Combat Hostiles 1 | . . . . . . . . . . . . . . . . 1 . Parts Fried 7 | . . . . . . . . . . . . 1 1 1 . 3 1 Impact Corruptions 2 | . . . . . . . . . . . . . . 1 . . 1 Robots Melted 4 | . . . . . . . . . . . . . . 2 . 2 . Combat Hostiles 4 | . . . . . . . . . . . . . . 2 . 2 . Parts Melted 14 | . . . . . . . . . . . . . . 5 2 6 1 Heat Transferred 12861 | . . 50 100 224 111 100 992 259 . 481 1582 457 111 2128 1493 3457 1316 Parts Sabotaged . | . . . . . . . . . . . . . . . . . . Parts Stolen . | . . . . . . . . . . . . . . . . . . Parts Stripped . | . . . . . . . . . . . . . . . . . . Power Chain Reactions 8 | . . 1 . 1 . . 1 . . . . 1 . . . 4 . Alert | -11 -10 -10 -9 -8 -7 -6 -6 -6 -6 -5 -5 -5 -5 -4 -3 -2 -2 ------- Run | Yrd Mat Min Mat Mat Fac Fac Low Low Dat Pro Fac Upp Upp Fac Res Res Tes Maximum Alert Level 3 | . . . . . . . . . . . 1 . . . . 3 2 Low Security (%) 78 | 100 100 100 100 100 100 100 . . . . 98 . . 100 100 21 35 Level 1 5 | . . . . . . . . . . . 1 . . . . 7 53 Level 2 13 | . . . . . . . . . . . . . . . . 61 10 Level 3 2 | . . . . . . . . . . . . . . . . 9 . Level 4 . | . . . . . . . . . . . . . . . . . . Level 5 . | . . . . . . . . . . . . . . . . . . High Security . | . . . . . . . . . . . . . . . . . . Max Security . | . . . . . . . . . . . . . . . . . . Peak Influence 863 | . 50 50 120 77 68 70 . . . . 213 . . 119 121 863 575 Initial 248 | . . . . 26 2 . . . . . 150 . . . 13 . 248 Average 131 | . 8 5 66 23 12 7 . . . . 63 . . 22 27 441 268 Influence Increases 7171 | . 110 79 240 187 83 99 240 80 . 210 865 235 32 1127 413 2389 782 Destroy 0b10 Robot/C 3480 | . 80 60 80 120 40 60 220 80 . 160 320 200 20 480 240 1060 260 Destroy 0b10 Robot/NC 345 | . 5 . 30 20 15 . . . . 10 10 . . 45 10 140 60 Destroy Leader 716 | . 22 10 44 28 14 10 20 . . 40 90 20 10 128 62 174 44 Allied During Kill 4 | . . . . . . . . . . . . . 2 2 . . . Trap Triggered on 0b10 10 | . . . . . . . . . . . 10 . . . . . . Successful Hack 118 | . 3 . 3 13 . 29 . . . . 36 . . . 3 21 10 Disable Machine 176 | . . . 20 . . . . . . . 36 . . 56 . 16 48 Anti-Garrison Action 150 | . . . . . . . . . . . . . . . . 150 . Destroy Structure 1737 | . . 9 63 6 14 . . . . . 168 . . 236 98 783 360 Advance Influence 150 | . . . . . . . . . . . 150 . . . . . . Lose Combat Pursuer 285 | . . . . . . . . . . . 45 15 . 180 . 45 . Influence Decreases 6596 | . 110 79 150 268 92 99 240 75 5 210 727 373 32 1093 446 1801 796 Entered New Map 512 | . . . . 64 7 . . . 5 . . 73 . . 21 1 341 Time Decay 5169 | . 110 79 150 204 85 99 180 75 . 200 632 300 32 883 415 1290 435 Lost Part 640 | . . . . . . . 60 . . 10 10 . . 190 10 340 20 Lost Ally 40 | . . . . . . . . . . . . . . 20 . 20 . Purge Threat 235 | . . . . . . . . . . . 85 . . . . 150 . Squads Dispatched 39 | . . . . 1 1 1 . . . . 8 . . 5 5 12 6 Investigation 4 | . . . . . . . . . . . 1 . . . 2 1 . Extermination 13 | . . . . . 1 . . . . . 2 . . 3 2 4 1 Reinforcement 12 | . . . . . . 1 . . . . 2 . . 2 . 2 5 Assault 4 | . . . . . . . . . . . . . . . . 4 . Garrison 6 | . . . . 1 . . . . . . 3 . . . 1 1 . Intercept . | . . . . . . . . . . . . . . . . . . Searches Triggered . | . . . . . . . . . . . . . . . . . . Construction Impeded 5 | . . . . . . . . . . . 2 . . 1 . 1 1 Haulers Reinforced 4 | . . . . . . . . . . . . . . 1 . 1 2 Active Scanning Responses . | . . . . . . . . . . . . . . . . . . Cargo Convoy Interrupts 1 | . . . . . . . . . . . . . . . . 1 . Stealth | -11 -10 -10 -9 -8 -7 -6 -6 -6 -6 -5 -5 -5 -5 -4 -3 -2 -2 --------- Run | Yrd Mat Min Mat Mat Fac Fac Low Low Dat Pro Fac Upp Upp Fac Res Res Tes Distress Signals 15 | . 2 . . . . . . . . 1 . . . 1 1 5 5 Communications Jammed . | . . . . . . . . . . . . . . . . . . Distress Signals . | . . . . . . . . . . . . . . . . . . Times Spotted 265 | . 5 4 6 9 4 5 13 4 . 10 22 11 2 51 17 78 24 Peak Tracking Total 8 | . 4 2 3 3 2 2 7 3 . 3 5 4 1 6 4 8 7 Tactical Retreats 17 | . . 1 2 . . . 1 . . . 2 1 . 7 . 3 . Traps | -11 -10 -10 -9 -8 -7 -6 -6 -6 -6 -5 -5 -5 -5 -4 -3 -2 -2 ------- Run | Yrd Mat Min Mat Mat Fac Fac Low Low Dat Pro Fac Upp Upp Fac Res Res Tes Traps Triggered 8 | . . . . . . 3 . . . . 2 . . 2 . 1 . Indirectly . | . . . . . . . . . . . . . . . . . . Trap Hack Attempts 10 | . . . . . . . . . . . . . . . 10 . . Triggered . | . . . . . . . . . . . . . . . . . . Disarmed . | . . . . . . . . . . . . . . . . . . Reprogrammed 1 | . . . . . . . . . . . . . . . 1 . . Reused 1 | . . . . . . . . . . . 1 . . . . . . Traps Extracted . | . . . . . . . . . . . . . . . . . . Installed 1 | . . . . . . . . . . . 1 . . . . . . Triggered 1 | . . . . . . . . . . . 1 . . . . . . Most Traps Carried 2 | . . 2 2 2 2 2 1 1 1 1 1 . . . . . . Machines | -11 -10 -10 -9 -8 -7 -6 -6 -6 -6 -5 -5 -5 -5 -4 -3 -2 -2 ---------- Run | Yrd Mat Min Mat Mat Fac Fac Low Low Dat Pro Fac Upp Upp Fac Res Res Tes Machines Disabled 48 | . . . 5 . . . 3 . . . 9 . . 14 . 5 12 Max in Single Turn 5 | . . . 3 . . . 3 . . . 4 . . 5 . 1 2 Garrison Access 3 | . . . . . 1 . . . . . . . . . . 1 1 Machines Repaired . | . . . . . . . . . . . . . . . . . . Machines Dismantled . | . . . . . . . . . . . . . . . . . . Machines Sabotaged . | . . . . . . . . . . . . . . . . . . Overloaded Fab Kills . | . . . . . . . . . . . . . . . . . . Hacking | -11 -10 -10 -9 -8 -7 -6 -6 -6 -6 -5 -5 -5 -5 -4 -3 -2 -2 --------- Run | Yrd Mat Min Mat Mat Fac Fac Low Low Dat Pro Fac Upp Upp Fac Res Res Tes Machines Accessed 38 | . 4 . 2 3 1 5 1 . . 1 6 . . 2 4 5 4 Terminals 26 | . 4 . 2 2 . 4 . . . 1 4 . . 1 1 4 3 Fabricators 2 | . . . . . . . . . . . . . . 1 1 . . Repair Stations 3 | . . . . 1 . 1 . . . . . . . . 1 . . Recycling Units 3 | . . . . . . . . . . . 2 . . . 1 . . Scanalyzers . | . . . . . . . . . . . . . . . . . . Garrison Access 3 | . . . . . 1 . . . . . . . . . . 1 1 Total Hacks 99 | . 14 . 5 11 1 9 1 . . 2 19 . . 2 10 19 6 Successful 55 | . 4 . 3 6 1 7 1 . . 2 13 . . 1 6 8 3 Failed 44 | . 10 . 2 5 . 2 . . . . 6 . . 1 4 11 3 Catastrophic 3 | . . . . . . 1 . . . . . . . . . 1 1 Database Lockouts . | . . . . . . . . . . . . . . . . . . Manual 56 | . 14 . 4 9 . 3 . . . 1 11 . . 1 . 9 4 Terminals 73 | . 14 . 5 9 . 7 . . . 2 10 . . 1 2 18 5 Fabricators 2 | . . . . . . . . . . . . . . 1 1 . . Repair Stations 8 | . . . . 2 . 2 . . . . . . . . 4 . . Recycling Units 12 | . . . . . . . . . . . 9 . . . 3 . . Scanalyzers . | . . . . . . . . . . . . . . . . . . Garrison Access 3 | . . . . . 1 . . . . . . . . . . 1 1 Terminal Hacks 19 | . 1 . 2 2 . 3 1 . . 2 3 . . . . 4 1 Record 8 | . . . . . . 2 . . . 2 . . . . . 3 1 Open Door 1 | . . . . . . . 1 . . . . . . . . . . Open DSF 1 | . . . . . . 1 . . . . . . . . . . . Level Access Points 1 | . . . . 1 . . . . . . . . . . . . . Branch Access Points 3 | . 1 . 1 1 . . . . . . . . . . . . . Emergency Access Points 1 | . . . 1 . . . . . . . . . . . . . . Unreport Threat 4 | . . . . . . . . . . . 3 . . . . 1 . Fabricator Hacks 1 | . . . . . . . . . . . . . . 1 . . . Network Status 1 | . . . . . . . . . . . . . . 1 . . . Repair Station Hacks 8 | . . . . 2 . 2 . . . . . . . . 4 . . Scan Component 4 | . . . . 1 . 1 . . . . . . . . 2 . . Repair 4 | . . . . 1 . 1 . . . . . . . . 2 . . Recycling Unit Hacks 8 | . . . . . . . . . . . 6 . . . 2 . . Process 2 | . . . . . . . . . . . 2 . . . . . . Report Inventory 3 | . . . . . . . . . . . 2 . . . 1 . . Retrieve Matter 2 | . . . . . . . . . . . 2 . . . . . . Retrieve Components 1 | . . . . . . . . . . . . . . . 1 . . Scanalyzer . | . . . . . . . . . . . . . . . . . . Garrison Access Hacks 2 | . . . . . 1 . . . . . . . . . . . 1 Seal Access 2 | . . . . . 1 . . . . . . . . . . . 1 Unauthorized Hacks 17 | . 3 . 1 2 . 2 . . . . 4 . . . . 4 1 Terminals 17 | . 3 . 1 2 . 2 . . . . 4 . . . . 4 1 Botnet 17 | . 3 . 1 2 . 2 . . . . 4 . . . . 4 1 Fabricators . | . . . . . . . . . . . . . . . . . . Repair Stations . | . . . . . . . . . . . . . . . . . . Recycling Units . | . . . . . . . . . . . . . . . . . . Scanalyzers . | . . . . . . . . . . . . . . . . . . Garrison Access . | . . . . . . . . . . . . . . . . . . Data Cores Recovered 2 | . . . 1 . . . . . . . 1 . . . . . . Used 1 | . . . 1 . . . . . . . . . . . . . . Hacking Detections 29 | . 3 . 2 3 . 4 . . . . 5 . . 1 3 5 3 Full Trace Events 3 | . . . . . . . . . . . . . . . 2 1 . Feedback Events . | . . . . . . . . . . . . . . . . . . Feedback Blocked . | . . . . . . . . . . . . . . . . . . Robot Schematics Acquired 2 | . . . . . . . . . . . . . . . . . 2 Robots Built . | . . . . . . . . . . . . . . . . . . Authchips . | . . . . . . . . . . . . . . . . . . Time . | . . . . . . . . . . . . . . . . . . Total Robot Build Rating . | . . . . . . . . . . . . . . . . . . Part Schematics Acquired 2 | . . . . . . . . . . . . . . . . . 2 Parts Built . | . . . . . . . . . . . . . . . . . . Authchips . | . . . . . . . . . . . . . . . . . . Time . | . . . . . . . . . . . . . . . . . . Total Part Build Rating . | . . . . . . . . . . . . . . . . . . Parts Repaired 4 | . . . . 1 . 1 . . . . . . . . 2 . . Time 175 | . . . . 26 . 13 . . . . . . . . 136 . . Parts Recycled . | . . . . . . . . . . . . . . . . . . Recycled Matter 20 | . . . . . . . . . . . 20 . . . . . . Retrieved Matter 20 | . . . . . . . . . . . 20 . . . . . . Retrieved Components 1 | . . . . . . . . . . . . . . . 1 . . Parts Scanalyzed . | . . . . . . . . . . . . . . . . . . Part Schematics Acquired . | . . . . . . . . . . . . . . . . . . Parts Damaged . | . . . . . . . . . . . . . . . . . . Bothacking | -11 -10 -10 -9 -8 -7 -6 -6 -6 -6 -5 -5 -5 -5 -4 -3 -2 -2 ------------ Run | Yrd Mat Min Mat Mat Fac Fac Low Low Dat Pro Fac Upp Upp Fac Res Res Tes Used RIF Installer . | . . . . . . . . . . . . . . . . . . Robots Hacked 1 | . . . . . . . . . . . . . . . 1 . . Non-combat 1 | . . . . . . . . . . . . . . . 1 . . Combat . | . . . . . . . . . . . . . . . . . . Robot Hacks Applied 1 | . . . . . . . . . . . . . . . 1 . . parse_system 1 | . . . . . . . . . . . . . . . 1 . . Relay Couplers Released 2 | . . . . . . . . . . . . . . . . 2 . Machine Destruction 2 | . . . . . . . . . . . . . . . . 2 . Fabnet Peak Effective % . | . . . . . . . . . . . . . . . . . . Robots Rewired 3 | . . . . . . . . . . . . . 3 . . . . Allies Hacked . | . . . . . . . . . . . . . . . . . . Hacks Repelled . | . . . . . . . . . . . . . . . . . . Allies | -11 -10 -10 -9 -8 -7 -6 -6 -6 -6 -5 -5 -5 -5 -4 -3 -2 -2 -------- Run | Yrd Mat Min Mat Mat Fac Fac Low Low Dat Pro Fac Upp Upp Fac Res Res Tes Total Allies 3 | . . . . . . . . . . . . . 3 . . . . Largest Group 3 | . . . . . . . . . . . . . 3 3 . . . Highest-Rated Group 87 | . . . . . . . . . . . . . 87 87 . . . Highest-Rated Ally 29 | . . . . . . . . . . . . . 29 29 . . . Total Orders . | . . . . . . . . . . . . . . . . . . Ally Attacks 42 | . . . . . . . . . . . . . 6 36 . . . Total Damage 573 | . . . . . . . . . . . . . 76 497 . . . Kills 2 | . . . . . . . . . . . . . . 2 . . . Allies Corrupted . | . . . . . . . . . . . . . . . . . . Allies Melted . | . . . . . . . . . . . . . . . . . . Intel | -11 -10 -10 -9 -8 -7 -6 -6 -6 -6 -5 -5 -5 -5 -4 -3 -2 -2 ------- Run | Yrd Mat Min Mat Mat Fac Fac Low Low Dat Pro Fac Upp Upp Fac Res Res Tes Active Infowar (turns) 8358 | 78 398 336 225 350 138 486 249 . . . 650 633 452 1706 970 1687 . Optics 2658 | . . . . . . . . . . . . . . 102 970 1586 . Sensors 1918 | . . . . . . . . . . . 650 633 452 183 . . . Terrain 4 | . . . . . . . . . . . . . . 4 . . . Decoding 4806 | . . . . . . . . . . . . . 443 1706 970 1687 . ECM 2260 | 78 398 336 225 350 138 486 249 . . . . . . . . . . Robot Analysis Total . | . . . . . . . . . . . . . . . . . . Derelict Logs Recovered 8 | . . . . . . . 2 2 . 2 . 1 1 . . . . Drone Launches 5 | . . . . . . . . . . . 3 . . . . 2 . Drone Recoveries . | . . . . . . . . . . . . . . . . . . Decoded 0b10 Intel 125 | . . . . . . . . . . . . . . 52 28 45 . Traps 25 | . . . . . . . . . . . . . . 14 5 6 . Emergency Access 14 | . . . . . . . . . . . . . . 4 3 7 . Items 71 | . . . . . . . . . . . . . . 30 16 25 . Machines 11 | . . . . . . . . . . . . . . 3 3 5 . Patrols 1 | . . . . . . . . . . . . . . . 1 . . Guards 3 | . . . . . . . . . . . . . . 1 . 2 . Exploration | -11 -10 -10 -9 -8 -7 -6 -6 -6 -6 -5 -5 -5 -5 -4 -3 -2 -2 ------------- Run | Yrd Mat Min Mat Mat Fac Fac Low Low Dat Pro Fac Upp Upp Fac Res Res Tes Turns Passed 12068 | 99 398 336 225 378 308 487 998 272 14 1166 1141 633 452 1811 970 1785 595 Spaces Moved 7978 | 49 190 168 135 222 221 350 713 200 12 903 809 457 343 1280 572 981 373 Core 469 | 5 . . . . . . . . . . . . . 367 . 85 12 Treads 11 | . . . . . . . 7 . . . . . . 4 . . . Legs 7322 | 44 190 168 135 222 221 350 706 200 12 903 809 457 343 733 572 896 361 Wheels . | . . . . . . . . . . . . . . . . . . Hover 176 | . . . . . . . . . . . . . . 176 . . . Flight . | . . . . . . . . . . . . . . . . . . Fastest Speed 50 | 50 190 190 120 120 122 125 120 120 120 120 120 115 115 50 120 50 50 Average Speed 123 | 172 190 190 125 122 123 125 122 120 120 120 120 119 118 101 121 143 112 Slowest Speed 300 | 300 190 190 190 123 125 125 260 120 120 190 120 120 120 240 270 260 118 Overloaded Moves . | . . . . . . . . . . . . . . . . . . Propulsion Burnouts . | . . . . . . . . . . . . . . . . . . Robots Hopped . | . . . . . . . . . . . . . . . . . . Potential Cave-ins . | . . . . . . . . . . . . . . . . . . Cave-ins Triggered . | . . . . . . . . . . . . . . . . . . Exploration Rate (%) 34 | 5 36 54 21 19 8 10 83 43 26 96 19 56 35 27 17 24 38 Regions Visited 17 Branch Regions 8 Pre-discovered Areas 1 | . . . . . . . . . . 1 . . . . . . . Known Exits Taken 17 | 1 1 1 1 1 1 1 1 1 1 1 1 1 1 1 1 1 . Unknown Exits Taken . | . . . . . . . . . . . . . . . . . . Scrap Searched 15 | . . . . . . . 3 3 . 4 . 3 2 . . . . Spaces Dug 2 | . . . . . . . . . . . . . 1 1 . . . Terrain Destroyed 984 | . . 20 65 6 19 . 53 47 . 1 83 17 4 160 53 335 121 Melee 2 | . . . . . . . . . . . . . 1 1 . . . Projectile 66 | . . . . . . . . . . 1 11 10 3 15 8 13 5 AOE 916 | . . 20 65 6 19 . 53 47 . . 72 7 . 144 45 322 116 Terrain Rammed . | . . . . . . . . . . . . . . . . . . Walls Destroyed . | . . . . . . . . . . . . . . . . . . Machines Disabled . | . . . . . . . . . . . . . . . . . . Actions | -11 -10 -10 -9 -8 -7 -6 -6 -6 -6 -5 -5 -5 -5 -4 -3 -2 -2 --------- Run | Yrd Mat Min Mat Mat Fac Fac Low Low Dat Pro Fac Upp Upp Fac Res Res Tes Total 9360 | 61 215 175 167 293 245 392 792 219 11 947 909 493 377 1621 792 1184 467 Wait 382 | . 10 . 5 16 1 13 10 . . 7 11 7 4 131 117 37 13 Move 7960 | 48 189 167 134 221 220 349 712 199 11 902 808 456 342 1278 571 980 373 Hop . | . . . . . . . . . . . . . . . . . . Pick Up 80 | 3 5 2 . 11 5 4 8 1 . 3 6 2 1 10 7 10 2 Fast Attach 154 | 8 2 . 1 4 1 5 12 2 . 4 21 1 4 29 19 16 25 Attach 79 | . . 1 4 3 2 2 5 . . . 3 3 1 19 5 25 6 Detach 73 | 1 1 . 4 1 1 3 5 1 . . 2 1 3 15 15 16 4 Swap 69 | . . . 1 5 3 2 4 6 . 3 2 1 4 12 11 12 3 Drop 137 | 1 1 . 2 12 6 9 14 4 . 9 23 2 2 23 14 8 7 Fire 322 | . 6 5 12 18 6 5 16 6 . 15 29 20 3 67 21 73 20 Melee 51 | . . . . . . . 6 . . . . . 1 28 2 7 7 Ram . | . . . . . . . . . . . . . . . . . . Kick 20 | . 1 . 4 2 . . . . . . 3 . . 8 . . 2 Crush . | . . . . . . . . . . . . . . . . . . Escape Stasis 6 | . . . . . . . . . . . . . . 1 . . 5 Rewire 16 | . . . . . . . . . . 4 . . 12 . . . . Trap 11 | . . . . . . . . . . . 1 . . . 10 . . Miscellaneous . | . . . . . . . . . . . . . . . . . . Route ------- -11/Scrapyard -10/Materials (discovered 3 exits: *Mat / *Min x2) -10/Mines -9/Materials (discovered 3 exits: *Mat / Min / Sto) -8/Materials (discovered 3 exits: *Fac x3) -7/Factory -6/Factory -6/Lower Caves -6/Lower Caves -6/Data Miner -5/Proximity Caves -5/Factory (discovered 4 exits: Fac x3 / *Upp) -5/Upper Caves -5/Upper Caves -4/Factory -3/Research -2/Research -2/Testing History --------- Turn | Location | Event 13 | -11/Scrapyard | Identified exit to Materials 13 | -11/Scrapyard | Discovered exit to Materials (range 15) 100 | -11/Scrapyard | Entered Materials 100 | -10/Materials | Evolved 1 slot: Utility x1 305 | -10/Materials | Build established: Hacker-Mutant 316 | -10/Materials | Identified exit to Materials 316 | -10/Materials | Discovered exit to Materials (range 15) 365 | -10/Materials | Identified exit to Mines 498 | -10/Materials | Entered Mines 529 | -10/Mines | Found a hidden stash of uninstalled traps 707 | -10/Mines | Discovered exit to Materials (range 14) 769 | -10/Mines | Assembled infested the area 834 | -10/Mines | Entered Materials 834 | -9/Materials | Evolved 2 slots: Propulsion x1, Weapon x1 868 | -9/Materials | Identified exit to Mines 868 | -9/Materials | Identified exit to Storage 1017 | -9/Materials | Identified exit to Materials 1017 | -9/Materials | Discovered exit to Materials (range 14) 1059 | -9/Materials | Entered another Materials area 1059 | -8/Materials | Evolved 2 slots: Utility x1, Weapon x1 1088 | -8/Materials | Identified exit to Factory 1144 | -8/Materials | Garrison activated, responded to threat 1282 | -8/Materials | Repaired ECM Suite 1416 | -8/Materials | Build established: Hacker-Tank 1437 | -8/Materials | Entered Factory 1437 | -7/Factory | Evolved 2 slots: Propulsion x1, Utility x1 1712 | -7/Factory | Identified exit to Factory 1712 | -7/Factory | Discovered exit to Factory (range 15) 1745 | -7/Factory | Entered another Factory area 1745 | -6/Factory | Evolved 2 slots: Power x1, Utility x1 1766 | -6/Factory | Identified exit to DSF 1965 | -6/Factory | Repaired Lgt. Armor Plating 2217 | -6/Factory | Identified exit to Lower Caves 2217 | -6/Factory | Discovered exit to Lower Caves (range 8) 2232 | -6/Factory | Entered Lower Caves 2434 | -6/Lower Caves | Attracted the attention of an 0b10 base 2520 | -6/Lower Caves | Destroyed 7 combat bots 2528 | -6/Lower Caves | Lost 6 parts (1n3u2w) 2666 | -6/Lower Caves | Learned 4 Factory zone layouts 2846 | -6/Lower Caves | Learned location of 2 exits from Factory 3028 | -6/Lower Caves | Build established: Scavenger-Gunner 3186 | -6/Lower Caves | Identified exit to Lower Caves 3186 | -6/Lower Caves | Discovered exit to Lower Caves (range 15) 3230 | -6/Lower Caves | Entered another Lower Caves area 3249 | -6/Lower Caves | Ambushed by research squad 3377 | -6/Lower Caves | Entered a destroyed Warlord outpost 3409 | -6/Lower Caves | Learned 4 Factory zone layouts 3447 | -6/Lower Caves | Learned Factory stockpile data 3471 | -6/Lower Caves | Attracted the attention of an 0b10 checkpoint 3479 | -6/Lower Caves | Identified exit to Data Miner 3479 | -6/Lower Caves | Discovered exit to Data Miner (range 10) 3502 | -6/Lower Caves | Entered Data Miner 3502 | -6/Data Miner | Identified exit to Proximity Caves 3502 | -6/Data Miner | Discovered exit to Proximity Caves (range 6) 3516 | -6/Data Miner | Entered Proximity Caves 3574 | -5/Proximity Caves | Learned Factory security intel 3630 | -5/Proximity Caves | Spotter reported a threat 3647 | -5/Proximity Caves | Build established: Derelict-Gunner 4534 | -5/Proximity Caves | Identified exit to Factory 4534 | -5/Proximity Caves | Discovered exit to Factory (range 9) 4682 | -5/Proximity Caves | Entered Factory 4682 | -5/Factory | Evolved 2 slots: Propulsion x2 4683 | -5/Factory | Identified exit to Factory 4943 | -5/Factory | Garrison activated, responded to threat 4967 | -5/Factory | Build established: Scavenger-Gunner 5439 | -5/Factory | Identified exit to Upper Caves 5439 | -5/Factory | Discovered exit to Upper Caves (range 10) 5669 | -5/Factory | Found Prototype Processor 5669 | -5/Factory | Identified Exp. Targeting Computer 5745 | -5/Factory | Lost 3 allies 5823 | -5/Factory | Entered Upper Caves 5927 | -5/Upper Caves | Attracted the attention of an 0b10 checkpoint 6014 | -5/Upper Caves | Identified exit to Upper Caves 6119 | -5/Upper Caves | Encountered a Warlord checkpoint 6456 | -5/Upper Caves | Entered another Upper Caves area 6461 | -5/Upper Caves | Discovered exit to Factory (range 10) 6568 | -5/Upper Caves | Learned Factory non-interactive machine intel 6569 | -5/Upper Caves | Attacked by a delusional Derelict stockpiling Unaware 6908 | -5/Upper Caves | Entered Factory 6908 | -4/Factory | Accompanied by 3 allies 6908 | -4/Factory | Evolved 2 slots: Power x1, Utility x1 6909 | -4/Factory | Loaded intel: 240 non-interactive machine locations 7601 | -4/Factory | Spotted B-86 Titan 7725 | -4/Factory | Lost 4 parts (1p2n1w) 7821 | -4/Factory | Lost 5 parts (1p2n1u1w) 7897 | -4/Factory | Spotted B-86 Titan 7907 | -4/Factory | System corruption reached 10% 7953 | -4/Factory | Lost 9 parts (2n3u4w) 8223 | -4/Factory | Build established: Hacker-Mutant 8552 | -4/Factory | Core integrity fell below 50% 8649 | -4/Factory | Identified exit to Research 8649 | -4/Factory | Discovered exit to Research (range 7) 8719 | -4/Factory | Entered Research 8719 | -3/Research | Evolved 2 slots: Utility x1, Weapon x1 8799 | -3/Research | Repaired Flexi-carbon Leg 8850 | -3/Research | Build established: Scavenger-Gunner 8885 | -3/Research | Repaired Broken Phase Gun 9025 | -3/Research | Found Gamma Bomb Array 9375 | -3/Research | Garrison activated, responded to threat 9382 | -3/Research | Build established: Scavenger-Tank 9415 | -3/Research | Identified exit to Research 9415 | -3/Research | Discovered exit to Research (range 13) 9689 | -3/Research | Entered another Research area 9689 | -2/Research | Evolved 2 slots: Utility x1, Weapon x1 9706 | -2/Research | Found Fusion Bomb Launcher 10003 | -2/Research | Build established: Hacker-Executioner 10039 | -2/Research | Found Prototype Device 10039 | -2/Research | Identified Exp. EM Disruption Field 10173 | -2/Research | Lost 3 parts (1n2u) 10214 | -2/Research | Destroyed 10 combat bots 10439 | -2/Research | First assault squad dispatched 10696 | -2/Research | Garrison activated, responded to threat 10751 | -2/Research | Found Prototype Device 10751 | -2/Research | Identified Adv. EM Shield 10823 | -2/Research | Spotted B-90 Cyclops 11282 | -2/Research | Destroyed 7 combat bots 11308 | -2/Research | Core integrity fell below 50% 11341 | -2/Research | Lost 12 parts (1p4n3u4w) 11389 | -2/Research | Spotted Executioner 11389 | -2/Research | Spotted Striker 11389 | -2/Research | Spotted Executioner 11390 | -2/Research | Cargo convoy interrupted 11390 | -2/Research | Destroyed Striker 11401 | -2/Research | System corruption reached 10% 11432 | -2/Research | Released all parts (11) 11435 | -2/Research | Core integrity fell below 20% 11459 | -2/Research | Lost 16 parts (2p5n3u6w) 11469 | -2/Research | Identified exit to Testing 11469 | -2/Research | Discovered exit to Testing (range 7) 11474 | -2/Research | Entered Testing 11544 | -2/Testing | Found Fusion Bomb Launcher 11657 | -2/Testing | Found Prototype Ballistic Cannon 11657 | -2/Testing | Identified Omega Cannon 11847 | -2/Testing | Found Prototype Processor 11847 | -2/Testing | Identified Exp. Terrain Scan Processor 11970 | -2/Testing | Scanned by Researcher 12064 | -2/Testing | Released all parts (20) 12069 | -2/Testing | Destroyed by H-88 Terminator with KE Penetrator Last Messages --------------- 12064_ Released Exp. Reaction Control System. 12064_ Released Com. Particle Reactor. 12064_ Released Adv. Heat Sink. 12064_ Released Exp. Terrain Scan Processor. 12064_ Penetrated by Slug. 12064_ Slug penetrates H-88 Terminator. 12065_ U-05 Engineer lays Concrete. 12065_ K-01 Serf collects debris. 12065_ Held in stasis. 12065_ C-65 Expert is analyzing... 12066_ Held in stasis. 12066_ C-65 Expert is analyzing... 12066_ U-05 Engineer builds a Wall. 12067_ Penetrated by Slug. 12067_ K-01 Serf collects debris. 12067_ Slug penetrates Gravity Sphere. 12067_ K-01 Serf collects debris. 12068_ Penetrated by Slug. [Achievement: 20k Club] [Achievement: Achiever] Map ----- +----------------------------------------------------+ | ?????????????????????????????????????????????????? | | ?????????????????????????????????????????????????? | | ?????????????????????????????????????????????????? | | ?????????????????????????????????????????????????? | | ?????????????????????????????????????????????????? | | ?????????????????????????????????????????????????? | | ?????????????????????????????????????????????????? | | ?????????????????????????????????????????????????? | | ?????????????????????????????????????????????????? | | ?????????????????????????????????????????????????? | | ?????????????????????????????????????????????????? | | ????????????????????? ???????????????????????????? | | ??????????????????" ??????????????????????????? | | ????????????????? ??????????????????????????? | | ??????????????? ?######???????????????????? | | ?????????????? ? " # #########???????????????? | | ????????????? "[hhh# """ #???????????????? | | ????????????? %! #u "" #???????????????? | | #####??????? " # " #???????????????? | | #??????? c #???????????????? | | #??????? c= = #???????????????? | | """#?????? %*%[ % #???????????????? | | ""#???????# [h= * #???????????????? | | """#???????# !=[= #???????????????? | | #???????# k ]|!*=" #???????????????? | | """#???????# ]%@[=! ]#???????????????? | | """#???????# """ =[=!"" #???????????????? | | """#???????# " * !=*""" #??????????##?### | | #???????# [[ """ #??######## ### | | ######### k #### # | | # ##### R ##################### | | ! " ! = # | | k! # | | ]! *** # | | A k %= * * / + | | #### ##### # ############ ] = # | | ## # # | | " ""G"" ## ### | | "" """ # " " ## """"" # * | | " """" # " " """ ## """"" | | "" "" # """ ## """"" # [ = | | # """^ ## # [ | | # """ ## """"" ## # ##/# ## | | ######### """ ## """"" ## # | | ####????# ^ """ #? """"" ## # | | """#????# """ #? ?? ## " | | ""#????# ^ #? ?? ## # | | /""#????# #? ?? ## """""""" # | | "#????##############?#??##""T""#### "" # | | ""#?????????????????????????""""???# """ "" """ # | +----------------------------------------------------+ Best States ------------- Heat Dissipation 125 Energy Generation 71 Energy Capacity 1590 Matter Stores 300 Matter Capacity 450 Sight Range 20 Robot Scan Range 15 Terrain Scan Range 14 Terrain Scan Density 1010 ECM Strength 1 Additional Mass Support 9 Base Temperature (-) 200 Armor Coverage 300 Resistance: KI 35 Resistance: TH 45 Resistance: EX 85 Resistance: EM 35 Resistance: I 35 Resistance: S 35 Resistance: P 35 Power Shielding 90 Weapon Shielding 90 Phase Shifting 15 Evasion (%) 84 Targeting Accuracy 30 Target Analysis 8 Armor Integrity Analysis 30 Recoil Reduction 6 Energy Filtering 30 Offensive Hacking 30 Item Schematics ----------------- Exp. Matter Compressor | -2/Testing | Archive Plasma Sword | -2/Testing | Archive Robot Schematics ------------------ C-55 Analyst | -2/Testing | Archive E-15 Imp | -2/Testing | Archive Fabricated ------------ Nothing Repaired ---------- ECM Suite | 35% | -8/Materials Lgt. Armor Plating | 25% | -6/Factory Phase Gun | 89% | -3/Research | Broken Alien Tech Used ----------------- None Achievements -------------- 20k Club A New Friend Achiever Can't Touch This Decoder Ring Dodgeball, But With Guns Hehehe Knowing Is Half The Battle Maybe Next Time I'll Detach My Launcher Oh No You Don't! Ooh, Shiny! Rockin' Loadout Tank Challenges ------------ None Game ------ Seed ReinforcedDataSystem Manual? 0 Play Time 02:33:46 Cumulative 19.0 hours Start 2025.10.17 @ 06:05:13 End 2025.10.18 @ 06:54:36 Sessions 3 Manual Loads 0 Difficulty Explorer Special Mode None Game No. 31 Rogue 12 Adventurer 18 Explorer 1 Win Type - Total 0 Types 0/0/0/0/0/0/0/0/0/0 Lore% 13 Gallery% 32 Achievement% 29 Wizard Run 0 Options --------- Layout 0 ASCII 0 Keyboard 1 Movement Numpad Keybinds 0 Fullscreen 1 Font 18/X11 Map View 76x50 Zoom Use 57% Tactical HUD 1 Map Filters NONE Filters NONE Steam 1 RUN: c66fc9ba-efbc-4d74-9507-ec7887e0299b